[Event "Pan-AM College-chT 2018"]
[Site "Burlingame"]
[Date "2018.12.30"]
[Round "6"]
[White "Prohaszka, Peter"]
[Black "Dragun, Kamil"]
[Result "1/2-1/2"]
[ECO "E11"]
[WhiteElo "2613"]
[BlackElo "2578"]
[Annotator "RC"]
[PlyCount "65"]
[EventDate "2018.12.28"]
[EventType "swiss"]
[EventCountry "USA"]
[SourceTitle "playchess.com"]
[Source "ChessBase"]
[SourceQuality "1"]
[TimeControl "5400+30"]

1. d4 {[%emt 0:00:00]} Nf6 {[%emt 0:01:06]} 2. c4 {[%emt 0:00:00]} e6 {[%emt 0:00:23]} 3. Nf3 {[%emt 0:00:00]} d5 {[%emt 0:00:21]} 4. g3 {[%emt 0:00:00]} Bb4+ {[%emt 0:00:25]} 5. Bd2 {[%emt 0:00:09]} Be7 {[%emt 0:00:09]} 6. Bg2 {[%emt 0:00:05]} c6 {[%emt 0:00:12]} 7. Qc2 {[%emt 0:00:25]} O-O {[%emt 0:00:26]} 8. O-O {[%emt 0:00:05]} Nbd7 {[%emt 0:00:09]} 9. Rc1 {[%emt 0:00:23]} b6 {[%emt 0:02:53]} 10. cxd5 {[%emt 0:00:36]} cxd5 {[%emt 0:00:57]} 11. Bf4 {[%emt 0:00:09]} Bb7 {[%emt 0:06:34]} 12. Qb3 {[%emt 0:00:26]} Rc8 {[%emt 0:03:02]} 13. Rxc8 {[%emt 0:00:25]} Qxc8 {[%emt 0:01:25]} 14. Nc3 {[%emt 0:00:18]} a6 {[%emt 0:02:31]} 15. Rc1 {[%emt 0:07:27]} Qa8 {[%emt 0:00:37]} 16. Ne5 {[%emt 0:17:33]} Nxe5 {[%emt 0:04:29]} 17. Bxe5 {[%emt 0:03:20]} Nd7 {[%emt 0:02:39]} 18. Bf4 {[%emt 0:08:22]} Rc8 {[%emt 0:04:24]} 19. Bd2 {[%emt 0:02:25]} b5 {[%emt 0:01:07]} 20. e3 {[%emt 0:01:39]} Nb6 {[%emt 0:01:56]} 21. Ne2 {[%emt 0:01:12]} Rc4 {[%emt 0:00:41]} 22. Qd1 {[%emt 0:02:14]} b4 {[%emt 0:11:32]} 23. b3 {[%emt 0:05:52]} Rxc1 {[%emt 0:00:06]} 24. Nxc1 {[%emt 0:00:15]} a5 {[%emt 0:00:27]} 25. Nd3 {[%emt 0:00:53]} Ba6 {[%emt 0:03:42]} 26. Bf1 {[%emt 0:04:34]} Qc8 {[%emt 0:02:59]} 27. Qc1 {[%emt 0:04:12]} Qxc1 {[%emt 0:00:05]} 28. Bxc1 {[%emt 0:01:36]} Nc8 {[%emt 0:02:03]} 29. f3 {[%emt 0:07:12]} Kf8 {[%emt 0:01:28]} 30. Kf2 {[%emt 0:01:09]} Ke8 {[%emt 0:00:54]} 31. Bb2 {[%emt 0:00:35]} g6 {[%emt 0:00:34]} 32. g4 {[%emt 0:03:11]} Nd6 {[%emt 0:04:10]} 33. Be2 {[%emt 0:03:59]} 1/2-1/2

[Event "Pan-AM College-chT 2018"]
[Site "Burlingame"]
[Date "2018.12.30"]
[Round "6"]
[White "Gabuzyan, Hovhannes"]
[Black "Shimanov, Aleksandr"]
[Result "1/2-1/2"]
[ECO "D02"]
[WhiteElo "2611"]
[BlackElo "2610"]
[Annotator "ChessBase"]
[PlyCount "89"]
[EventDate "2018.12.28"]
[EventType "swiss"]
[EventCountry "USA"]
[SourceTitle "playchess.com"]
[Source "ChessBase"]
[SourceQuality "1"]
[TimeControl "5400+30"]

1. Nf3 {[%emt 0:01:04]} d5 {[%emt 0:00:00]} 2. g3 {[%emt 0:00:04]} Bg4 {[%emt 0:01:15]} 3. Bg2 {[%emt 0:00:13]} c6 {[%emt 0:00:20]} 4. O-O {[%emt 0:00:17]} Nd7 {[%emt 0:00:28]} 5. d4 {[%emt 0:00:07]} e6 {[%emt 0:00:50]} 6. Re1 {[%emt 0:00:35]} Ngf6 {[%emt 0:00:17]} 7. Nbd2 {[%emt 0:00:07]} Be7 {[%emt 0:00:15]} 8. e4 {[%emt 0:00:07]} O-O {[%emt 0:00:11]} 9. c3 {[%emt 0:00:10]} Bh5 {[%emt 0:00:23]} 10. e5 {[%emt 0:00:23]} Ne8 {[%emt 0:00:14]} 11. Nb3 {[%emt 0:00:08]} a5 {[%emt 0:01:27]} 12. Be3 {[%emt 0:00:05]} Nb6 {[%emt 0:06:37]} 13. Nc1 {[%emt 0:00:27]} Nc4 {[%emt 0:01:53]} 14. Nd3 {[%emt 0:00:18]} a4 {[%emt 0:06:06]} 15. b3 {[%emt 0:05:22]} axb3 {[%emt 0:02:03]} 16. axb3 {[%emt 0:00:04]} Rxa1 {[%emt 0:01:16]} 17. Qxa1 {[%emt 0:00:05]} Nxe3 {[%emt 0:00:06]} 18. fxe3 {[%emt 0:00:03]} Qb6 {[%emt 0:01:23]} 19. Qb2 {[%emt 0:03:42]} Nc7 {[%emt 0:02:51]} 20. Ra1 {[%emt 0:00:56]} Ra8 {[%emt 0:01:35]} 21. Rxa8+ {[%emt 0:00:46]} Nxa8 {[%emt 0:00:04]} 22. c4 {[%emt 0:05:08]} Qa5 {[%emt 0:03:29]} 23. c5 {[%emt 0:05:11]} Nc7 {[%emt 0:01:00]} 24. Nfe1 {[%emt 0:01:07]} Bg6 {[%emt 0:01:31]} 25. Bf1 {[%emt 0:00:49]} Nb5 {[%emt 0:04:27]} 26. b4 {[%emt 0:01:19]} Qa4 {[%emt 0:01:50]} 27. Kf2 {[%emt 0:02:16]} Bf5 {[%emt 0:03:42]} 28. Be2 {[%emt 0:00:17]} Nc7 {[%emt 0:02:03]} 29. h4 {[%emt 0:01:41]} Na6 {[%emt 0:02:16]} 30. Nc2 {[%emt 0:03:46]} f6 {[%emt 0:05:01]} 31. exf6 {[%emt 0:01:53]} Bxf6 {[%emt 0:02:38]} 32. Nde1 {[%emt 0:03:17]} Nb8 {[%emt 0:09:23]} 33. b5 {[%emt 0:05:08]} Nd7 {[%emt 0:02:45]} 34. bxc6 {[%emt 0:00:24]} bxc6 {[%emt 0:08:59]} 35. Bd3 {[%emt 0:03:11]} Qa8 {[%emt 0:02:30]} 36. Qb3 {[%emt 0:02:05]} Bg4 {[%emt 0:05:49]} 37. e4 {[%emt 0:04:05]} Qa5 {[%emt 0:08:44]} 38. Be2 {[%emt 0:02:22]} Qd2 {[%emt 0:01:37]} 39. Qe3 {[%emt 0:03:04]} Qxe3+ {[%emt 0:00:27]} 40. Kxe3 {[%emt 0:00:06]} Bxe2 {[%emt 0:00:04]} 41. Kxe2 {[%emt 0:00:03]} dxe4 {[%emt 0:00:04]} 42. Ke3 {[%emt 0:00:05]} e5 {[%emt 0:00:15]} 43. Kxe4 {[%emt 0:00:05]} exd4 {[%emt 0:00:07]} 44. Nd3 {[%emt 0:00:03]} Kf7 {[%emt 0:01:03]} 45. Nxd4 {[%emt 0:01:30]} 1/2-1/2

[Event "Pan-AM College-chT 2018"]
[Site "Burlingame"]
[Date "2018.12.30"]
[Round "6"]
[White "Stukopin, Andrey"]
[Black "Durarbayli, Vasif"]
[Result "1/2-1/2"]
[ECO "C54"]
[WhiteElo "2565"]
[BlackElo "2620"]
[Annotator "ChessBase"]
[PlyCount "65"]
[EventDate "2018.12.28"]
[EventType "swiss"]
[EventCountry "USA"]
[SourceTitle "playchess.com"]
[Source "ChessBase"]
[SourceQuality "1"]
[TimeControl "5400+30"]

1. e4 {[%emt 0:00:00]} e5 {[%emt 0:00:00]} 2. Nf3 {[%emt 0:00:05]} Nc6 {[%emt 0:00:00]} 3. Bc4 {[%emt 0:00:04]} Bc5 {[%emt 0:00:00]} 4. O-O {[%emt 0:00:24]} Nf6 {[%emt 0:00:00]} 5. d3 {[%emt 0:00:15]} O-O {[%emt 0:00:05]} 6. h3 {[%emt 0:00:04]} d6 {[%emt 0:00:32]} 7. c3 {[%emt 0:00:07]} a5 {[%emt 0:00:05]} 8. Re1 {[%emt 0:02:34]} h6 {[%emt 0:00:11]} 9. Nbd2 {[%emt 0:02:01]} Be6 {[%emt 0:00:42]} 10. a4 {[%emt 0:06:22]} Ba7 {[%emt 0:00:15]} 11. Bb5 {[%emt 0:11:11]} Ne7 {[%emt 0:08:44]} 12. d4 {[%emt 0:00:10]} Ng6 {[%emt 0:00:20]} 13. Nf1 {[%emt 0:01:12]} Qc8 {[%emt 0:07:06]} 14. Ng3 {[%emt 0:01:53]} c6 {[%emt 0:06:02]} 15. Bd3 {[%emt 0:01:52]} Re8 {[%emt 0:00:40]} 16. Nf5 {[%emt 0:12:51]} Bb8 {[%emt 0:05:42]} 17. dxe5 {[%emt 0:02:01]} dxe5 {[%emt 0:00:46]} 18. Qc2 {[%emt 0:00:05]} Qc7 {[%emt 0:04:54]} 19. Be3 {[%emt 0:07:56]} Bxf5 {[%emt 0:10:34]} 20. exf5 {[%emt 0:00:05]} Nf8 {[%emt 0:01:29]} 21. Nd2 {[%emt 0:06:20]} e4 {[%emt 0:13:17]} 22. Bxe4 {[%emt 0:01:44]} Qh2+ {[%emt 0:04:30]} 23. Kf1 {[%emt 0:00:04]} Nd5 {[%emt 0:02:21]} 24. Bxd5 {[%emt 0:11:07]} cxd5 {[%emt 0:00:15]} 25. Qd3 {[%emt 0:00:11]} Qh1+ {[%emt 0:07:32]} 26. Ke2 {[%emt 0:00:04]} Qxg2 {[%emt 0:00:04]} 27. Rg1 {[%emt 0:00:45]} Qxh3 {[%emt 0:00:29]} 28. Qxd5 {[%emt 0:05:18]} Be5 {[%emt 0:06:56]} 29. Qf3 {[%emt 0:01:18]} Qxf3+ {[%emt 0:00:19]} 30. Kxf3 {[%emt 0:02:16]} Ra6 {[%emt 0:02:04]} 31. Ne4 {[%emt 0:00:00]} Rc6 {[%emt 0:02:18]} 32. Rad1 {[%emt 0:01:31]} Nh7 {[%emt 0:01:40]} 33. Rd7 {[%emt 0:07:44]} 1/2-1/2

[Event "Pan-AM College-chT 2018"]
[Site "Burlingame"]
[Date "2018.12.30"]
[Round "6"]
[White "Narva, Mai"]
[Black "Raznikov, Danny"]
[Result "1/2-1/2"]
[ECO "C96"]
[WhiteElo "2347"]
[BlackElo "2499"]
[Annotator "RC"]
[PlyCount "50"]
[EventDate "2018.12.28"]
[EventType "swiss"]
[EventCountry "USA"]
[SourceTitle "playchess.com"]
[Source "ChessBase"]
[SourceQuality "1"]
[TimeControl "5400+30"]

1. e4 {[%emt 0:00:00]} e5 {[%emt 0:00:00]} 2. Nf3 {[%emt 0:00:00]} Nc6 {[%emt 0:00:04]} 3. Bb5 {[%emt 0:00:00]} a6 {[%emt 0:00:12]} 4. Ba4 {[%emt 0:00:10]} Nf6 {[%emt 0:00:23]} 5. O-O {[%emt 0:00:19]} Be7 {[%emt 0:00:27]} 6. Re1 {[%emt 0:00:18]} b5 {[%emt 0:00:11]} 7. Bb3 {[%emt 0:00:07]} d6 {[%emt 0:00:12]} 8. c3 {[%emt 0:00:21]} O-O {[%emt 0:00:10]} 9. h3 {[%emt 0:00:29]} Na5 {[%emt 0:00:24]} 10. Bc2 {[%emt 0:00:12]} c5 {[%emt 0:00:14]} 11. d4 {[%emt 0:00:28]} Nd7 {[%emt 0:00:52]} 12. Nbd2 {[%emt 0:05:48]} exd4 {[%emt 0:04:00]} 13. cxd4 {[%emt 0:00:09]} Nc6 {[%emt 0:00:13]} 14. Nf1 {[%emt 0:12:29]} cxd4 {[%emt 0:06:57]} 15. Nxd4 {[%emt 0:00:15]} Nxd4 {[%emt 0:01:23]} 16. Qxd4 {[%emt 0:00:08]} Ne5 {[%emt 0:11:59]} 17. Qd1 {[%emt 0:09:57]} Bf6 {[%emt 0:13:01]} 18. Ne3 {[%emt 0:10:57]} Nc4 {[%emt 0:10:29]} 19. Rb1 {[%emt 0:14:43]} Be6 {[%emt 0:04:39]} 20. Nd5 {[%emt 0:08:54]} Bxd5 {[%emt 0:11:55]} 21. Qxd5 {[%emt 0:16:03]} Rc8 {[%emt 0:01:36]} 22. Re2 {[%emt 0:02:40]} Re8 {[%emt 0:08:04]} 23. b3 {[%emt 0:03:23]} Ne5 {[%emt 0:07:28]} 24. Be3 {[%emt 0:06:18]} Nc6 {[%emt 0:05:07]} 25. Qd2 {[%emt 0:02:33]} Qc7 {[%emt 0:01:19]} 1/2-1/2